{"text_format":"3","workbook":"xlsx","n_sheets":1,"sheets":["Лист1"],"read":"whole","date_system":"1900"}

{"sheet":"Лист1","index":0,"n_rows":53,"n_cols":65,"rows_kept":53,"merged":[[0,0,4,0],[0,1,4,1],[0,2,0,8],[0,9,0,15],[0,16,0,22],[0,23,0,29],[0,30,0,36],[0,37,0,43],[0,45,0,47],[0,48,0,50],[0,51,0,53],[0,54,0,56],[0,57,0,59],[0,60,0,62],[1,2,1,8],[1,9,1,15],[1,16,1,22],[1,23,1,29],[1,30,1,36],[1,37,1,43],[1,45,1,47],[1,48,1,50],[1,51,1,53],[1,54,1,56],[1,57,1,59],[1,60,1,62],[2,2,2,8],[2,9,2,15],[2,16,2,22],[2,23,2,29],[2,30,2,36],[2,37,2,43],[2,45,2,47],[2,48,2,50],[2,51,2,53],[2,54,2,56],[2,57,2,59],[2,60,2,62],[3,2,3,4],[3,5,3,8],[3,9,3,11],[3,12,3,15],[3,16,3,18],[3,19,3,22],[3,23,3,25],[3,26,3,29],[3,30,3,32],[3,33,3,36],[3,37,3,39],[3,40,3,43],[3,45,3,47],[3,48,3,50],[3,51,3,53],[3,54,3,56],[3,57,3,59],[3,60,3,62],[5,0,5,1],[6,0,11,0],[12,0,16,0],[18,0,18,1],[19,0,22,0],[23,0,29,0],[30,0,33,0],[34,0,40,0],[41,0,45,0]]}
["Наименование компетенции","Бухгалтерский учет","Модуль А. Текущий учет активов и обязательств",{"$nulls":6},"Модуль Б. Учет расчетов с персоналом",{"$nulls":6},"Модуль В. Составление бухгалтерской (финансовой) отчетности",{"$nulls":6},"Модуль Г. Анализ бухгалтерской (финансовой) отчетности ",{"$nulls":6},"Модуль Д. Бюджетирование и управление денежными потоками",{"$nulls":6},"Модуль Е. Налоговое консультирование",{"$nulls":7},"Модуль А. Текущий учет активов и обязательств",null,null,"Модуль Б. Учет расчетов с персоналом",null,null,"Модуль В. Составление бухгалтерской (финансовой) отчетности",null,null,"Модуль Г. Анализ бухгалтерской (финансовой) отчетности ",null,null,"Модуль Д. Бюджетирование и управление денежными потоками",null,null,"Модуль Е. Налоговое консультирование"]
[null,null,"Инвариант",{"$nulls":6},"Инвариант",{"$nulls":6},"Инвариант",{"$nulls":6},"Инвариант",{"$nulls":6}," Вариатив",{"$nulls":6}," Вариатив",{"$nulls":7},"Инвариант",null,null,"Инвариант",null,null,"Инвариант",null,null,"Инвариант",null,null,"Вариатив",null,null,"Вариатив"]
[null,null,"Профессиональный стандарт 08.002 Бухгалтер",{"$nulls":6},"Профессиональный стандарт 08.002 Бухгалтер",{"$nulls":6},"Профессиональный стандарт 08.002 Бухгалтер",{"$nulls":6},"Профессиональный стандарт 08.002 Бухгалтер",{"$nulls":6},"Профессиональный стандарт 08.002 Бухгалтер",{"$nulls":6},"Профессиональный стандарт 08.002 Бухгалтер",{"$nulls":7},"Профессиональный стандарт 08.044 Консультант по налогам и сборам",null,null,"Профессиональный стандарт 08.044 Консультант по налогам и сборам",null,null,"Профессиональный стандарт 08.044 Консультант по налогам и сборам",null,null,"Профессиональный стандарт 08.044 Консультант по налогам и сборам",null,null,"Профессиональный стандарт 08.044 Консультант по налогам и сборам",null,null,"Профессиональный стандарт 08.044 Консультант по налогам и сборам"]
[null,null,"ОТФ код А. Ведение бухгалтерского учета",null,null,"ОТФ код В. Составление и представление бухгалтерской (финансовой) отчетности экономического субъекта",{"$nulls":3},"ОТФ код А. Ведение бухгалтерского учета",null,null,"ОТФ код В. Составление и представление бухгалтерской (финансовой) отчетности экономического субъекта",{"$nulls":3},"ОТФ код А. Ведение бухгалтерского учета",null,null,"ОТФ код В. Составление и представление бухгалтерской (финансовой) отчетности экономического субъекта",{"$nulls":3},"ОТФ код А. Ведение бухгалтерского учета",null,null,"ОТФ код В. Составление и представление бухгалтерской (финансовой) отчетности экономического субъекта",{"$nulls":3},"ОТФ код А. Ведение бухгалтерского учета",null,null,"ОТФ код В. Составление и представление бухгалтерской (финансовой) отчетности экономического субъекта",{"$nulls":3},"ОТФ код А. Ведение бухгалтерского учета",null,null,"ОТФ код В. Составление и представление бухгалтерской (финансовой) отчетности экономического субъекта",{"$nulls":4},"ОТФ код А. Организационное и документационное обеспечение деятельности по налоговому консультированию",null,null,"ОТФ код А. Организационное и документационное обеспечение деятельности по налоговому консультированию",null,null,"ОТФ код А. Организационное и документационное обеспечение деятельности по налоговому консультированию",null,null,"ОТФ код А. Организационное и документационное обеспечение деятельности по налоговому консультированию",null,null,"ОТФ код А. Организационное и документационное обеспечение деятельности по налоговому консультированию",null,null,"ОТФ код А. Организационное и документационное обеспечение деятельности по налоговому консультированию"]
[null,null,"А/01.5 Принятие к учету первичных учетных документов о фактах хозяйственной жизни экономического субъекта","А/02.5 Денежное измерение объектов бухгалтерского учета и текущая группировка фактов хозяйственной жизни","А/03.5 Итоговое обобщение фактов хозяйственной жизни","В/01.6 Составление бухгалтерской (финансовой) отчетности","В/02.6 Внутренний контроль ведения бухгалтерского учета и составления бухгалтерской (финансовой) отчетности","В/03.6 Ведение налогового учета, составление налоговых расчетов и деклараций, налоговое планирование","В/04.6 Проведение финансового анализа, бюджетирование и управление денежными потоками","А/01.5 Принятие к учету первичных учетных документов о фактах хозяйственной жизни экономического субъекта","А/02.5 Денежное измерение объектов бухгалтерского учета и текущая группировка фактов хозяйственной жизни","А/03.5 Итоговое обобщение фактов хозяйственной жизни","В/01.6 Составление бухгалтерской (финансовой) отчетности","В/02.6 Внутренний контроль ведения бухгалтерского учета и составления бухгалтерской (финансовой) отчетности","В/03.6 Ведение налогового учета, составление налоговых расчетов и деклараций, налоговое планирование","В/04.6 Проведение финансового анализа, бюджетирование и управление денежными потоками","А/01.5 Принятие к учету первичных учетных документов о фактах хозяйственной жизни экономического субъекта","А/02.5 Денежное измерение объектов бухгалтерского учета и текущая группировка фактов хозяйственной жизни","А/03.5 Итоговое обобщение фактов хозяйственной жизни","В/01.6 Составление бухгалтерской (финансовой) отчетности","В/02.6 Внутренний контроль ведения бухгалтерского учета и составления бухгалтерской (финансовой) отчетности","В/03.6 Ведение налогового учета, составление налоговых расчетов и деклараций, налоговое планирование","В/04.6 Проведение финансового анализа, бюджетирование и управление денежными потоками","А/01.5 Принятие к учету первичных учетных документов о фактах хозяйственной жизни экономического субъекта","А/02.5 Денежное измерение объектов бухгалтерского учета и текущая группировка фактов хозяйственной жизни","А/03.5 Итоговое обобщение фактов хозяйственной жизни","В/01.6 Составление бухгалтерской (финансовой) отчетности","В/02.6 Внутренний контроль ведения бухгалтерского учета и составления бухгалтерской (финансовой) отчетности","В/03.6 Ведение налогового учета, составление налоговых расчетов и деклараций, налоговое планирование","В/04.6 Проведение финансового анализа, бюджетирование и управление денежными потоками","А/01.5 Принятие к учету первичных учетных документов о фактах хозяйственной жизни экономического субъекта","А/02.5 Денежное измерение объектов бухгалтерского учета и текущая группировка фактов хозяйственной жизни","А/03.5 Итоговое обобщение фактов хозяйственной жизни","В/01.6 Составление бухгалтерской (финансовой) отчетности","В/02.6 Внутренний контроль ведения бухгалтерского учета и составления бухгалтерской (финансовой) отчетности","В/03.6 Ведение налогового учета, составление налоговых расчетов и деклараций, налоговое планирование","В/04.6 Проведение финансового анализа, бюджетирование и управление денежными потоками","А/01.5 Принятие к учету первичных учетных документов о фактах хозяйственной жизни экономического субъекта","А/02.5 Денежное измерение объектов бухгалтерского учета и текущая группировка фактов хозяйственной жизни","А/03.5 Итоговое обобщение фактов хозяйственной жизни","В/01.6 Составление бухгалтерской (финансовой) отчетности","В/02.6 Внутренний контроль ведения бухгалтерского учета и составления бухгалтерской (финансовой) отчетности","В/03.6 Ведение налогового учета, составление налоговых расчетов и деклараций, налоговое планирование","В/04.6 Проведение финансового анализа, бюджетирование и управление денежными потоками",null,"A/01.6 Постановка на учет в налоговых органах, ведение учета в целях исполнения налоговых обязанностей работодателем и/или в интересах третьих лиц, в том числе физических лиц","A/02.6 Обработка документации, информации при формировании налоговой отчетности, во время осуществления мероприятий налогового контроля (администрирования)","A/03.6 Анализ норм законодательства Российской Федерации о налогах и сборах, правоприменительной практики и разъяснений государственных органов для целей налогового консультирования","A/01.6 Постановка на учет в налоговых органах, ведение учета в целях исполнения налоговых обязанностей работодателем и/или в интересах третьих лиц, в том числе физических лиц","A/02.6 Обработка документации, информации при формировании налоговой отчетности, во время осуществления мероприятий налогового контроля (администрирования)","A/03.6 Анализ норм законодательства Российской Федерации о налогах и сборах, правоприменительной практики и разъяснений государственных органов для целей налогового консультирования","A/01.6 Постановка на учет в налоговых органах, ведение учета в целях исполнения налоговых обязанностей работодателем и/или в интересах третьих лиц, в том числе физических лиц","A/02.6 Обработка документации, информации при формировании налоговой отчетности, во время осуществления мероприятий налогового контроля (администрирования)","A/03.6 Анализ норм законодательства Российской Федерации о налогах и сборах, правоприменительной практики и разъяснений государственных органов для целей налогового консультирования","A/01.6 Постановка на учет в налоговых органах, ведение учета в целях исполнения налоговых обязанностей работодателем и/или в интересах третьих лиц, в том числе физических лиц","A/02.6 Обработка документации, информации при формировании налоговой отчетности, во время осуществления мероприятий налогового контроля (администрирования)","A/03.6 Анализ норм законодательства Российской Федерации о налогах и сборах, правоприменительной практики и разъяснений государственных органов для целей налогового консультирования","A/01.6 Постановка на учет в налоговых органах, ведение учета в целях исполнения налоговых обязанностей работодателем и/или в интересах третьих лиц, в том числе физических лиц","A/02.6 Обработка документации, информации при формировании налоговой отчетности, во время осуществления мероприятий налогового контроля (администрирования)","A/03.6 Анализ норм законодательства Российской Федерации о налогах и сборах, правоприменительной практики и разъяснений государственных органов для целей налогового консультирования","A/01.6 Постановка на учет в налоговых органах, ведение учета в целях исполнения налоговых обязанностей работодателем и/или в интересах третьих лиц, в том числе физических лиц","A/02.6 Обработка документации, информации при формировании налоговой отчетности, во время осуществления мероприятий налогового контроля (администрирования)","A/03.6 Анализ норм законодательства Российской Федерации о налогах и сборах, правоприменительной практики и разъяснений государственных органов для целей налогового консультирования",null,"% ПК, не учтенных в содержании модулей компетенции от общего количества ПК во ФГОС"]
["ФГОС СПО 38.02.01 Экономика и бухгалтерский учет (по отраслям)"]
["Вид деятельности 1 Ведение бухгалтерского и налогового учета","ПК 1.1. Составлять и обрабатывать первичные учетные документы о фактах хозяйственной деятельности экономического субъекта","учтена",{"$nulls":6},"учтена",{"$nulls":6},"учтена",{"$nulls":6},"учтена",{"$nulls":6},"учтена",{"$nulls":6},"учтена",{"$nulls":7},"учтена","учтена",null,"учтена","учтена",null,"учтена",null,null,"учтена",null,null,"учтена",null,null,"учтена","учтена","учтена",{"$f":"COUNTIF(C7:BK7,\"учтена\")","v":16}]
[null,"ПК 1.2. Проводить денежное измерение объектов бухгалтерского учета",null,"учтена","учтена",{"$nulls":5},"учтена","учтена",{"$nulls":5},"учтена",{"$nulls":18},"учтена",null,"учтена",{"$nulls":24},7]
[null,"ПК 1.3. Проводить расчет налогов и сборов",{"$nulls":5},"учтена",{"$nulls":6},"учтена",{"$nulls":27},"учтена",null,null,"учтена",null,null,"учтена",{"$nulls":8},"учтена",null,null,"учтена",null,null,7]
[null,"ПК 1.4. Применять рабочий план счетов бухгалтерского учета организации",null,"учтена",{"$nulls":13},"учтена",{"$nulls":45},2]
[null,"ПК 1.5. Осуществлять текущую группировку и итоговое обобщение фактов хозяйственной деятельности",null,null,"учтена",{"$nulls":6},"учтена",{"$nulls":6},"учтена",{"$nulls":17},"учтена",{"$nulls":8},"учтена",{"$nulls":5},"учтена",{"$nulls":8},"учтена",null,"учтена",8]
[null,"ПК 1.6. Использовать цифровые технологии ведения бухгалтерского учета и формирования отчетности","учтена","учтена","учтена",null,null,"учтена",null,"учтена","учтена","учтена",null,null,"учтена",{"$nulls":3},"учтена",{"$nulls":10},"учтена",{"$nulls":6},"учтена",{"$nulls":5},"учтена",null,null,"учтена","учтена",null,"учтена","учтена",null,"учтена",null,null,"учтена",null,null,"учтена",null,null,"учтена","учтена","учтена",22]
["Вид деятельности 2\nСоставление и использование бухгалтерской (финансовой) и налоговой отчетности экономического субъекта ","ПК 2.1. Проводить инвентаризацию активов и обязательств экономического субъекта и отражать ее результаты",null,"учтена",{"$nulls":59},1]
[null,"ПК 2.2. Формировать бухгалтерскую (финансовую) и налоговую отчетность.",{"$nulls":5},"учтена",{"$nulls":6},"учтена",{"$nulls":4},"учтена",{"$nulls":25},"учтена","учтена",null,"учтена","учтена",{"$nulls":13},7]
[null,"ПК 2.3. Оценивать достоверность формирования бухгалтерской (финансовой) и налоговой отчетности.",{"$nulls":5},"учтена",{"$nulls":6},"учтена",{"$nulls":5},"учтена",{"$nulls":39},"учтена",null,null,4]
[null,"ПК 2.4. Проводить анализ бухгалтерской (финансовой) отчетности.",{"$nulls":27},"учтена",{"$nulls":33},1]
[null,"ПК 2.5. Составлять финансовую модель бизнес-плана.",{"$nulls":27},"учтена",{"$nulls":6},"учтена",{"$nulls":6},"учтена",{"$nulls":19},3,{"$f":"(COUNTIF(BL7:BL17, \"0\")*100)/COUNTA(BL7:BL17)","v":{"v":0,"d":"0.00"}}]
[]
["ФГОС СПО 38.02.01 Экономика и бухгалтерский учет (по отраслям)"]
["Вид деятельности 1. Документирование хозяйственных операций и ведение бухгалтерского учета активов организации","ПК 1.1. Обрабатывать первичные бухгалтерские документы","учтена",{"$nulls":6},"учтена",{"$nulls":6},"учтена",{"$nulls":8},"учтена",{"$nulls":4},"учтена",{"$nulls":6},"учтена",{"$nulls":7},"учтена",null,null,"учтена",null,null,"учтена",null,null,"учтена",null,null,"учтена",null,null,"учтена",null,null,{"$f":"COUNTIF(C20:BK20,\"учтена\")","v":12}]
[null,"ПК 1.2. Разрабатывать и согласовывать с руководством организации рабочий план счетов бухгалтерского учета организации",null,"учтена",{"$nulls":13},"учтена",{"$nulls":45},2]
[null,"ПК 1.3. Проводить учет денежных средств, оформлять денежные и кассовые документы",null,"учтена","учтена",{"$nulls":5},"учтена",{"$nulls":52},3]
[null,"ПК 1.4. Формировать бухгалтерские проводки по учету активов организации на основе рабочего плана счетов бухгалтерского учета",null,"учтена",{"$nulls":59},1]
["Вид деятельности 2. Ведение бухгалтерского учета источников формирования активов, выполнение работ по инвентаризации активов и финансовых обязательств организации","ПК 2.1. Формировать бухгалтерские проводки по учету источников активов организации на основе рабочего плана счетов бухгалтерского учета",null,"учтена",{"$nulls":6},"учтена",{"$nulls":8},"учтена",{"$nulls":43},3]
[null,"ПК 2.2. Выполнять поручения руководства в составе комиссии по инвентаризации активов в местах их хранения",{"$nulls":61},0]
[null,"ПК 2.3. Проводить подготовку к инвентаризации и проверку действительного соответствия фактических данных инвентаризации данным учета",{"$nulls":61},0]
[null,"ПК 2.4. Отражать в бухгалтерских проводках зачет и списание недостачи ценностей (регулировать инвентаризационные разницы) по результатам инвентаризации",null,"учтена",{"$nulls":59},1]
[null,"ПК 2.5. Проводить процедуры инвентаризации финансовых обязательств организации",{"$nulls":61},0]
[null,"ПК 2.6. Осуществлять сбор информации о деятельности объекта внутреннего контроля по выполнению требований правовой и нормативной базы и внутренних регламентов",{"$nulls":61},0]
[null,"ПК 2.7. Выполнять контрольные процедуры и их документирование, готовить и оформлять завершающие материалы по результатам внутреннего контроля.",{"$nulls":4},"учтена",{"$nulls":6},"учтена",{"$nulls":6},"учтена",{"$nulls":25},"учтена",null,null,"учтена",{"$nulls":11},"учтена",null,6]
["Вид деятельности 3. Проведение расчетов с бюджетом и внебюджетными фондами ","ПК 3.1. Формировать бухгалтерские проводки по начислению и перечислению налогов и сборов в бюджеты различных уровней",null,"учтена",{"$nulls":15},"учтена",{"$nulls":43},2]
[null,"ПК 3.2. Оформлять платежные документы для перечисления налогов и сборов в бюджет, контролировать их прохождение по расчетно-кассовым банковским операциям","учтена",{"$nulls":6},"учтена",{"$nulls":53},2]
[null,"ПК 3.3. Формировать бухгалтерские проводки по начислению и перечислению страховых взносов во внебюджетные фонды и налоговые органы",{"$nulls":61},0]
[null,"ПК 3.4. Оформлять платежные документы на перечисление страховых взносов во внебюджетные фонды и налоговые органы, контролировать их прохождение по расчетно-кассовым банковским операциям",{"$nulls":7},"учтена",{"$nulls":53},1]
["Вид деятельности 4. Составление и использование бухгалтерской (финансовой) отчетности","ПК 4.1. Отражать нарастающим итогом на счетах бухгалтерского учета имущественное и финансовое положение организации, определять результаты хозяйственной деятельности за отчетный период",null,null,"учтена",{"$nulls":13},"учтена","учтена",{"$nulls":13},"учтена",{"$nulls":29},4]
[null,"ПК 4.2. Составлять формы бухгалтерской (финансовой) отчетности в установленные законодательством сроки",{"$nulls":17},"учтена",{"$nulls":43},1]
[null,"ПК 4.3. Составлять (отчеты) и налоговые декларации по налогам и сборам в бюджет, учитывая отмененный единый социальный налог (ЕСН), отчеты по страховым взносам в государственные внебюджетные фонды, а также формы статистической отчетности в установленные законодательством сроки",{"$nulls":5},"учтена",{"$nulls":6},"учтена",{"$nulls":48},2]
[null,"ПК 4.4. Проводить контроль и анализ информации об активах и финансовом положении организации, ее платежеспособности и доходности",{"$nulls":18},"учтена",{"$nulls":8},"учтена",{"$nulls":33},2]
[null,"ПК 4.5. Принимать участие в составлении бизнес-плана",{"$nulls":34},"учтена",{"$nulls":26},1]
[null,"ПК 4.6. Анализировать финансово-хозяйственную деятельность, осуществлять анализ информации, полученной в ходе проведения контрольных процедур, выявление и оценку рисков",{"$nulls":27},"учтена",{"$nulls":6},"учтена",{"$nulls":6},"учтена",{"$nulls":3},"учтена",null,null,"учтена",{"$nulls":8},"учтена",null,null,"учтена",7]
[null,"ПК 4.7. Проводить мониторинг устранения менеджментом выявленных нарушений, недостатков и рисков",{"$nulls":27},"учтена",{"$nulls":12},"учтена",{"$nulls":20},2]
["Вид деятельности 5. Осуществление налогового учета и налогового планирования в организации","ПК 5.1. Организовывать налоговый учет",{"$nulls":5},"учтена",{"$nulls":6},"учтена",{"$nulls":31},"учтена",null,null,"учтена",{"$nulls":13},4]
[null,"ПК 5.2. Разрабатывать и заполнять первичные учетные документы и регистры налогового учета",{"$nulls":5},"учтена",{"$nulls":6},"учтена",{"$nulls":22},"учтена",{"$nulls":8},"учтена",null,null,"учтена",{"$nulls":13},5]
[null,"ПК 5.3. Проводить определение налоговой базы для расчета налогов и сборов, обязательных для уплаты",{"$nulls":5},"учтена",{"$nulls":6},"учтена",{"$nulls":6},"учтена",{"$nulls":14},"учтена",null,"учтена",{"$nulls":3},"учтена",null,null,"учтена",null,null,"учтена",null,null,"учтена",{"$nulls":5},"учтена",null,null,"учтена",null,null,11]
[null,"ПК 5.4. Применять налоговые льготы в используемой системе налогообложения при исчислении величины налогов и сборов, обязательных для уплаты",{"$nulls":5},"учтена",{"$nulls":6},"учтена",{"$nulls":21},"учтена",null,"учтена",{"$nulls":3},"учтена",{"$nulls":4},"учтена",null,null,"учтена",{"$nulls":8},"учтена",null,null,"учтена",9]
[null,"ПК 5.5. Проводить налоговое планирование деятельности организации",{"$nulls":34},"учтена",{"$nulls":5},"учтена",{"$nulls":16},"учтена",null,null,"учтена",4,{"$f":"(COUNTIF(BL20:BL46, \"0\")*100)/COUNTA(BL20:BL46)","v":{"v":18.51851851851852,"d":"18.52"}}]
[null,null,{"$f":"COUNTIF(C7:C46,\"учтена\")","v":4},{"$f":"COUNTIF(D7:D46,\"учтена\")","v":10},5,0,1,9,0,5,4,3,0,1,9,0,2,3,3,5,3,1,0,1,0,1,0,0,0,6,2,0,0,1,0,0,9,3,3,0,0,0,6,2,null,7,{"$f":"COUNTIF(AU7:AU46,\"учтена\")","v":6},{"$f":"COUNTIF(AV7:AV46,\"учтена\")","v":2},{"$f":"COUNTIF(AW7:AW46,\"учтена\")","v":6},{"$f":"COUNTIF(AX7:AX46,\"учтена\")","v":6},{"$f":"COUNTIF(AY7:AY46,\"учтена\")","v":2},{"$f":"COUNTIF(AZ7:AZ46,\"учтена\")","v":5},{"$f":"COUNTIF(BA7:BA46,\"учтена\")","v":0},{"$f":"COUNTIF(BB7:BB46,\"учтена\")","v":0},{"$f":"COUNTIF(BC7:BC46,\"учтена\")","v":3},{"$f":"COUNTIF(BD7:BD46,\"учтена\")","v":0},{"$f":"COUNTIF(BE7:BE46,\"учтена\")","v":0},{"$f":"COUNTIF(BF7:BF46,\"учтена\")","v":5},{"$f":"COUNTIF(BG7:BG46,\"учтена\")","v":0},{"$f":"COUNTIF(BH7:BH46,\"учтена\")","v":3},{"$f":"COUNTIF(BI7:BI46,\"учтена\")","v":7},{"$f":"COUNTIF(BJ7:BJ46,\"учтена\")","v":3},{"$f":"COUNTIF(BK7:BK46,\"учтена\")","v":6}]
[null,"% ТФ, учтенных во ФГОС СПО, от общего количества ТФ модуля компетенции",{"$nulls":27},{"$f":"(COUNTIF(C47:AD47, \"> 0\")*100)/COLUMNS(C47:AD47)","v":{"v":67.85714285714286,"d":"67.9"}},{"$nulls":13},{"$f":"(COUNTIF(C47:AR47, \"> 0\")*100)/COLUMNS(C47:AR47)","v":{"v":61.904761904761905,"d":"61.9"}},{"$nulls":18},{"$f":"(COUNTIF(AT47:BK47, \"> 0\")*100)/COLUMNS(AT47:BK47)","v":{"v":72.22222222222223,"d":"72.2"}}]
[]
["Вывод:","В части основных модулей компетенции","В части вариативных модулей компетенции"]
["1. Содержание всех модулей соответствует \nФГОС СПО","Соответствует","Соответствует"]
["2. Перечень модулей компетенции, содержание которых не соответствует ФГОС СПО","Отсутствуют ","Отсутствуют "]
["3. Предложения по учету содержания модулей компетенции (п.2) в образовательных программах по профессиям/ специальностям СПО","Отсутствуют ","Отсутствуют "]